Workbook

Sheet INSTRUCTIONS
B2: Your business name here | Z2: Forecasted takings | AB2: 8000 | AE2: Budget | AF2: 0.25
AD3: This Rota | AF3: =AF28/AB2 -> 0.28243725
A4: Week Ending | C4: MONDAY | F4: TUESDAY | I4: WEDNESDAY | L4: THURSDAY | O4: FRIDAY | R4: SATURDAY | U4: SUNDAY | Y4: Hourly or Salary? | AA4: PAY RATE | AB4: HOURS | AC4: GROSS PAY | AD4: E'ER N.I. | AE4: E'ER PENSION | AF4: TOTAL COST
A5: 14.6.20 | C5: START | D5: FINISH | F5: START | G5: FINISH | I5: START | J5: FINISH | L5: START | M5: FINISH | O5: START | P5: FINISH | R5: START | S5: FINISH | U5: START | V5: FINISH
A7: Beverley (Boss) | C7: 10:00:00 | D7: 23:30:00 | E7: =IF(C7>D7,(24-((C7-D7)*24)),(D7-C7)*24) -> 13.5 | F7: 10:00:00 | G7: 17:00:00 | H7: =IF(F7>G7,(24-((F7-G7)*24)),(G7-F7)*24) -> 7 | K7: =IF(I7>J7,(24-((I7-J7)*24)),(J7-I7)*24) -> 0 | L7: 10:30:00 | M7: 15:00:00 | N7: =IF(L7>M7,(24-((L7-M7)*24)),(M7-L7)*24) -> 4.5 | O7: 10:00:00 | P7: 16:00:00 | Q7: =IF(O7>P7,(24-((O7-P7)*24)),(P7-O7)*24) -> 6 | R7: 16:00:00 | S7: 01:30:00 | T7: =IF(R7>S7,(24-((R7-S7)*24)),(S7-R7)*24) -> 9.5 | U7: 10:00:00 | V7: 23:00:00 | W7: =IF(U7>V7,(24-((U7-V7)*24)),(V7-U7)*24) -> 13 | Y7: S | Z7: =IF(A7=A6,"",A7) -> Beverley (Boss) | AA7: 500 | AB7: =SUMIF(A:A,Z7,E:E)+SUMIF(A:A,Z7,H:H)+SUMIF(A:A,Z7,K:K)+SUMIF(A:A,Z7,N:N)+SUMIF(A:A,Z7,Q:Q)+SUMIF(A:A,Z7,T:T)+SUMIF(A:A,Z7,W:W) -> 53.5 | AC7: =IF(Y7="S",AA7,AB7*AA7) -> 500 | AD7: =IF(AC7>=$Z$31,(AC7-$Z$31)*$Z$32,0) -> 45.678 | AE7: =IF(AC7>=$Z$34,(AC7-$Z$35)*$Z$33,0) -> 11.4 | AF7: =SUM(AC7:AE7) -> 557.078 | AH7: H
A8: Dave Smith (Chef) | C8: 10:00:00 | D8: 14:00:00 | E8: 4 | H8: 0 | I8: 10:00:00 | J8: 14:00:00 | K8: 4 | N8: 0 | O8: 10:00:00 | P8: 14:00:00 | Q8: 4 | R8: 10:00:00 | S8: 14:00:00 | T8: 4 | W8: 0 | Y8: H | Z8: =IF(A8=A7,"",A8) -> Dave Smith (Chef) | AA8: 15 | AB8: 44 | AC8: =IF(Y8="S",AA8,AB8*AA8) -> 660 | AD8: =IF(AC8>=$Z$31,(AC8-$Z$31)*$Z$32,0) -> 67.758 | AE8: 16.2 | AF8: =SUM(AC8:AE8) -> 743.958 | AH8: S
A9: Dave Smith (Chef) | C9: 17:00:00 | D9: 22:00:00 | E9: 5 | F9: 17:00:00 | G9: 23:00:00 | H9: 6 | I9: 17:00:00 | J9: 23:00:00 | K9: 6 | N9: 0 | O9: 17:00:00 | P9: 22:00:00 | Q9: 5 | R9: 17:00:00 | S9: 23:00:00 | T9: 6 | W9: 0 | Y9: H | Z9: =IF(A9=A8,"",A9) ->  | AA9: 15 | AB9: 0 | AC9: 0 | AD9: 0 | AE9: 0 | AF9: 0
A10: Mary Jones (F/T Bar) | C10: 14:00:00 | D10: 23:00:00 | E10: =IF(C10>D10,(24-((C10-D10)*24)),(D10-C10)*24) -> 9 | H10: =IF(F10>G10,(24-((F10-G10)*24)),(G10-F10)*24) -> 0 | K10: =IF(I10>J10,(24-((I10-J10)*24)),(J10-I10)*24) -> 0 | L10: 14:00:00 | M10: 23:30:00 | N10: =IF(L10>M10,(24-((L10-M10)*24)),(M10-L10)*24) -> 9.5 | O10: 17:00:00 | P10: 22:00:00 | Q10: =IF(O10>P10,(24-((O10-P10)*24)),(P10-O10)*24) -> 5 | R10: 17:00:00 | S10: 01:30:00 | T10: =IF(R10>S10,(24-((R10-S10)*24)),(S10-R10)*24) -> 8.5 | U10: 17:00:00 | V10: 22:00:00 | W10: =IF(U10>V10,(24-((U10-V10)*24)),(V10-U10)*24) -> 5 | Y10: H | Z10: =IF(A10=A9,"",A10) -> Mary Jones (F/T Bar) | AA10: 9 | AB10: 37 | AC10: 333 | AD10: 22.632 | AE10: 6.39 | AF10: 362.022
A11: Bob Brown (F/T Bar) | E11: 0 | F11: 15:00:00 | G11: 23:30:00 | H11: 8.5 | I11: 14:00:00 | J11: 23:00:00 | K11: 9 | N11: 0 | O11: 18:00:00 | P11: 01:30:00 | Q11: 7.5 | R11: 18:00:00 | S11: 01:30:00 | T11: 7.5 | U11: 11:00:00 | V11: 15:00:00 | W11: 4 | Y11: H | Z11: Bob Brown (F/T Bar) | AA11: 8.5 | AB11: 36.5 | AC11: 310.25 | AD11: 19.4925 | AE11: 5.7075 | AF11: 335.45
A12: Sarah Smith (P/T chef) | E12: 0 | F12: 10:00:00 | G12: 14:00:00 | H12: 4 | K12: 0 | L12: 10:00:00 | M12: 14:00:00 | N12: 4 | O12: 17:00:00 | P12: 22:00:00 | Q12: 5 | R12: 17:00:00 | S12: 22:00:00 | T12: 5 | U12: 10:00:00 | V12: 15:00:00 | W12: 5 | Y12: H | Z12: Sarah Smith (P/T chef) | AA12: 8.5 | AB12: 29 | AC12: 246.5 | AD12: 10.695 | AE12: 3.795 | AF12: 260.99
A13: Sarah Smith (P/T chef) | E13: 0 | H13: 0 | K13: 0 | L13: 17:00:00 | M13: 23:00:00 | N13: 6 | Q13: 0 | T13: 0 | W13: 0 | Y13: H | AA13: 8.5 | AB13: 0 | AC13: 0 | AD13: 0 | AE13: 0 | AF13: 0
E14: 0 | H14: 0 | K14: 0 | N14: 0 | Q14: 0 | T14: 0 | W14: 0 | Y14: H | Z14: 0 | AA14: 7.5 | AB14: 0 | AC14: 0 | AD14: 0 | AE14: 0 | AF14: 0
E15: 0 | H15: 0 | K15: 0 | N15: 0 | Q15: 0 | T15: 0 | W15: 0 | Y15: H | AA15: 7.5 | AB15: 0 | AC15: 0 | AD15: 0 | AE15: 0 | AF15: 0
E16: 0 | H16: 0 | K16: 0 | N16: 0 | Q16: 0 | T16: 0 | W16: 0 | Y16: H | AA16: 11 | AB16: 0 | AC16: 0 | AD16: 0 | AE16: 0 | AF16: 0
E17: 0 | H17: 0 | K17: 0 | N17: 0 | Q17: 0 | T17: 0 | W17: 0 | Y17: H | AA17: 7.5 | AB17: 0 | AC17: 0 | AD17: 0 | AE17: 0 | AF17: 0
E18: 0 | H18: 0 | K18: 0 | N18: 0 | Q18: 0 | T18: 0 | W18: 0 | Y18: H | AA18: 7.5 | AB18: 0 | AC18: 0 | AD18: 0 | AE18: 0 | AF18: 0
E19: 0 | H19: 0 | K19: 0 | N19: 0 | Q19: 0 | T19: 0 | W19: 0 | Y19: H | AA19: 7.5 | AB19: 0 | AC19: 0 | AD19: 0 | AE19: 0 | AF19: 0
E20: 0 | H20: 0 | K20: 0 | N20: 0 | Q20: 0 | T20: 0 | W20: 0 | Y20: H | AA20: 7.5 | AB20: 0 | AC20: 0 | AD20: 0 | AE20: 0 | AF20: 0
E21: 0 | H21: 0 | K21: 0 | N21: 0 | Q21: 0 | T21: 0 | W21: 0 | Y21: H | AA21: 7.5 | AB21: 0 | AC21: 0 | AD21: 0 | AE21: 0 | AF21: 0
E22: 0 | H22: 0 | K22: 0 | N22: 0 | Q22: 0 | T22: 0 | W22: 0 | Y22: H | AA22: 7 | AB22: 0 | AC22: 0 | AD22: 0 | AE22: 0 | AF22: 0
E23: 0 | H23: 0 | K23: 0 | N23: 0 | Q23: 0 | T23: 0 | W23: 0 | Y23: H | AA23: 7.5 | AB23: 0 | AC23: 0 | AD23: 0 | AE23: 0 | AF23: 0
E24: 0 | H24: 0 | K24: 0 | N24: 0 | Q24: 0 | T24: 0 | W24: 0 | Y24: H | AA24: 7.5 | AB24: 0 | AC24: 0 | AD24: 0 | AE24: 0 | AF24: 0
E25: 0 | H25: 0 | K25: 0 | N25: 0 | Q25: 0 | T25: 0 | W25: 0 | Y25: H | AA25: 7.5 | AB25: 0 | AC25: 0 | AD25: 0 | AE25: 0 | AF25: 0
E26: 0 | H26: 0 | K26: 0 | N26: 0 | Q26: 0 | T26: 0 | W26: 0 | Y26: H | AA26: 7.5 | AB26: 0 | AC26: 0 | AD26: 0 | AE26: 0 | AF26: 0
AA28: TOTALS | AC28: =SUM(AC7:AC26) -> 2049.75 | AD28: =SUM(AD7:AD26) -> 166.2555 | AE28: 43.4925 | AF28: 2259.498
Z31: 169 | AA31: Secondary threshold (weekly)
Z32: 0.138 | AA32: Secondary Class 1 NIC
Z33: 0.03 | AA33: Employer contribution
Z34: 192 | AA34: Enrollment threshold
Z35: 120 | AA35: Pension threshold
Z36: 0.1207 | AA36: Holiday accrual % | AD36: www.roslyns.co.uk

Sheet FULL ROTA
C2: Dog and Duck - Edinburgh | AN2: Forecasted takings | AP2: 9000 | AS2: Budget | AT2: 0.25
AR3: This Rota | AT3: =AT28/(AP2/1.2) -> 0.2300170667
A4: Week Ending | C4: MONDAY | H4: TUESDAY | M4: WEDNESDAY | R4: THURSDAY | W4: FRIDAY | AB4: SATURDAY | AG4: SUNDAY | AM4: Hourly or Salary? | AO4: PAY RATE | AP4: HOURS | AQ4: GROSS PAY | AR4: E'ER N.I. | AS4: E'ER PENSION | AT4: TOTAL COST
A5: 2024-02-04 | C5: START | D5: FINISH | E5: START | F5: FINISH | H5: START | I5: FINISH | J5: START | K5: FINISH | M5: START | N5: FINISH | O5: START | P5: FINISH | R5: START | S5: FINISH | T5: START | U5: FINISH | W5: START | X5: FINISH | Y5: START | Z5: FINISH | AB5: START | AC5: FINISH | AD5: START | AE5: FINISH | AG5: START | AH5: FINISH | AI5: START | AJ5: FINISH
A7: Beverley (Boss) | C7: 15:00:00 | D7: 16:00:00 | G7: =IF(C7>D7,(24-((C7-D7)*24)),(D7-C7)*24)+IF(E7>F7,(24-((E7-F7)*24)),(F7-E7)*24) -> 1 | L7: =IF(H7>I7,(24-((H7-I7)*24)),(I7-H7)*24)+IF(J7>K7,(24-((J7-K7)*24)),(K7-J7)*24) -> 0 | Q7: =IF(M7>N7,(24-((M7-N7)*24)),(N7-M7)*24)+IF(O7>P7,(24-((O7-P7)*24)),(P7-O7)*24) -> 0 | V7: =IF(R7>S7,(24-((R7-S7)*24)),(S7-R7)*24)+IF(T7>U7,(24-((T7-U7)*24)),(U7-T7)*24) -> 0 | AA7: =IF(W7>X7,(24-((W7-X7)*24)),(X7-W7)*24)+IF(Y7>Z7,(24-((Y7-Z7)*24)),(Z7-Y7)*24) -> 0 | AF7: =IF(AB7>AC7,(24-((AB7-AC7)*24)),(AC7-AB7)*24)+IF(AD7>AE7,(24-((AD7-AE7)*24)),(AE7-AD7)*24) -> 0 | AK7: =IF(AG7>AH7,(24-((AG7-AH7)*24)),(AH7-AG7)*24)+IF(AI7>AJ7,(24-((AI7-AJ7)*24)),(AJ7-AI7)*24) -> 0 | AM7: S | AN7: =IF(A7=A6,"",A7) -> Beverley (Boss) | AO7: 8.5 | AP7: =SUMIF(A:A,AN7,G:G)+SUMIF(A:A,AN7,L:L)+SUMIF(A:A,AN7,Q:Q)+SUMIF(A:A,AN7,V:V)+SUMIF(A:A,AN7,AA:AA)+SUMIF(A:A,AN7,AF:AF)+SUMIF(A:A,AN7,AK:AK) -> 1 | AQ7: =IF(AM7="S",AO7,AP7*AO7) -> 8.5 | AR7: =IF(AQ7>=$AN$31,(AQ7-$AN$31)*$AN$32,0) -> 0 | AS7: =IF(AQ7>=$AN$34,(AQ7-$AN$35)*$AN$33,0) -> 0 | AT7: =SUM(AQ7:AS7) -> 8.5 | AV7: H
A8: Dave Smith (Chef) | C8: 10:00:00 | D8: 14:00:00 | G8: =IF(C8>D8,(24-((C8-D8)*24)),(D8-C8)*24)+IF(E8>F8,(24-((E8-F8)*24)),(F8-E8)*24) -> 4 | L8: =IF(H8>I8,(24-((H8-I8)*24)),(I8-H8)*24)+IF(J8>K8,(24-((J8-K8)*24)),(K8-J8)*24) -> 0 | M8: 10:00:00 | N8: 14:00:00 | Q8: =IF(M8>N8,(24-((M8-N8)*24)),(N8-M8)*24)+IF(O8>P8,(24-((O8-P8)*24)),(P8-O8)*24) -> 4 | V8: =IF(R8>S8,(24-((R8-S8)*24)),(S8-R8)*24)+IF(T8>U8,(24-((T8-U8)*24)),(U8-T8)*24) -> 0 | W8: 10:00:00 | X8: 14:00:00 | AA8: =IF(W8>X8,(24-((W8-X8)*24)),(X8-W8)*24)+IF(Y8>Z8,(24-((Y8-Z8)*24)),(Z8-Y8)*24) -> 4 | AB8: 10:00:00 | AC8: 14:00:00 | AF8: =IF(AB8>AC8,(24-((AB8-AC8)*24)),(AC8-AB8)*24)+IF(AD8>AE8,(24-((AD8-AE8)*24)),(AE8-AD8)*24) -> 4 | AK8: =IF(AG8>AH8,(24-((AG8-AH8)*24)),(AH8-AG8)*24)+IF(AI8>AJ8,(24-((AI8-AJ8)*24)),(AJ8-AI8)*24) -> 0 | AM8: H | AN8: =IF(A8=A7,"",A8) -> Dave Smith (Chef) | AO8: 15 | AP8: 45 | AQ8: =IF(AM8="S",AO8,AP8*AO8) -> 675 | AR8: =IF(AQ8>=$AN$31,(AQ8-$AN$31)*$AN$32,0) -> 69 | AS8: 16.65 | AT8: =SUM(AQ8:AS8) -> 760.65 | AV8: S
A9: Dave Smith (Chef) | C9: 17:00:00 | D9: 22:00:00 | G9: 5 | H9: 12:00:00 | I9: 16:00:00 | J9: 17:00:00 | K9: 20:00:00 | L9: 7 | M9: 17:00:00 | N9: 23:00:00 | Q9: 6 | V9: 0 | W9: 17:00:00 | X9: 22:00:00 | AA9: 5 | AB9: 17:00:00 | AC9: 23:00:00 | AF9: 6 | AK9: 0 | AM9: H | AN9: =IF(A9=A8,"",A9) ->  | AO9: 15 | AP9: 0 | AQ9: 0 | AR9: 0 | AS9: 0 | AT9: 0
A10: Mary Jones (F/T Bar) | C10: 14:00:00 | D10: 23:00:00 | G10: 9 | L10: 0 | Q10: 0 | R10: 14:00:00 | S10: 23:30:00 | V10: 9.5 | W10: 17:00:00 | X10: 22:00:00 | AA10: 5 | AB10: 17:00:00 | AC10: 01:30:00 | AF10: 8.5 | AG10: 17:00:00 | AH10: 22:00:00 | AK10: 5 | AM10: H | AN10: =IF(A10=A9,"",A10) -> Mary Jones (F/T Bar) | AO10: 9 | AP10: 37 | AQ10: 333 | AR10: 21.804 | AS10: 6.39 | AT10: 361.194
A11: Bob Brown (F/T Bar) | G11: 0 | H11: 15:00:00 | I11: 23:30:00 | L11: 8.5 | M11: 14:00:00 | N11: 23:00:00 | Q11: 9 | V11: 0 | W11: 18:00:00 | X11: 01:30:00 | AA11: 7.5 | AB11: 18:00:00 | AC11: 01:30:00 | AF11: 7.5 | AG11: 11:00:00 | AH11: 15:00:00 | AK11: 4 | AM11: H | AN11: Bob Brown (F/T Bar) | AO11: 8.5 | AP11: 36.5 | AQ11: 310.25 | AR11: 18.6645 | AS11: 5.7075 | AT11: 334.622
A12: Sarah Smith (P/T chef) | G12: 0 | H12: 10:00:00 | I12: 14:00:00 | L12: 4 | Q12: 0 | R12: 10:00:00 | S12: 14:00:00 | V12: 4 | W12: 17:00:00 | X12: 22:00:00 | AA12: 5 | AB12: 17:00:00 | AC12: 22:00:00 | AF12: 5 | AG12: 10:00:00 | AH12: 15:00:00 | AK12: 5 | AM12: H | AN12: Sarah Smith (P/T chef) | AO12: 8.5 | AP12: 29 | AQ12: 246.5 | AR12: 9.867 | AS12: 3.795 | AT12: 260.162
A13: Sarah Smith (P/T chef) | G13: 0 | L13: 0 | Q13: 0 | R13: 17:00:00 | S13: 23:00:00 | V13: 6 | AA13: 0 | AF13: 0 | AK13: 0 | AM13: H | AO13: 8.5 | AP13: 0 | AQ13: 0 | AR13: 0 | AS13: 0 | AT13: 0
G14: 0 | L14: 0 | Q14: 0 | V14: 0 | AA14: 0 | AF14: 0 | AK14: 0 | AM14: H | AN14: 0 | AO14: 7.5 | AP14: 0 | AQ14: 0 | AR14: 0 | AS14: 0 | AT14: 0
G15: 0 | L15: 0 | Q15: 0 | V15: 0 | AA15: 0 | AF15: 0 | AK15: 0 | AM15: H | AO15: 7.5 | AP15: 0 | AQ15: 0 | AR15: 0 | AS15: 0 | AT15: 0
G16: 0 | L16: 0 | Q16: 0 | V16: 0 | AA16: 0 | AF16: 0 | AK16: 0 | AM16: H | AO16: 11 | AP16: 0 | AQ16: 0 | AR16: 0 | AS16: 0 | AT16: 0
G17: 0 | L17: 0 | Q17: 0 | V17: 0 | AA17: 0 | AF17: 0 | AK17: 0 | AM17: H | AO17: 7.5 | AP17: 0 | AQ17: 0 | AR17: 0 | AS17: 0 | AT17: 0
G18: 0 | L18: 0 | Q18: 0 | V18: 0 | AA18: 0 | AF18: 0 | AK18: 0 | AM18: H | AO18: 7.5 | AP18: 0 | AQ18: 0 | AR18: 0 | AS18: 0 | AT18: 0
G19: 0 | L19: 0 | Q19: 0 | V19: 0 | AA19: 0 | AF19: 0 | AK19: 0 | AM19: H | AO19: 7.5 | AP19: 0 | AQ19: 0 | AR19: 0 | AS19: 0 | AT19: 0
G20: 0 | L20: 0 | Q20: 0 | V20: 0 | AA20: 0 | AF20: 0 | AK20: 0 | AM20: H | AO20: 7.5 | AP20: 0 | AQ20: 0 | AR20: 0 | AS20: 0 | AT20: 0
G21: 0 | L21: 0 | Q21: 0 | V21: 0 | AA21: 0 | AF21: 0 | AK21: 0 | AM21: H | AO21: 7.5 | AP21: 0 | AQ21: 0 | AR21: 0 | AS21: 0 | AT21: 0
G22: 0 | L22: 0 | Q22: 0 | V22: 0 | AA22: 0 | AF22: 0 | AK22: 0 | AM22: H | AO22: 7 | AP22: 0 | AQ22: 0 | AR22: 0 | AS22: 0 | AT22: 0
G23: 0 | L23: 0 | Q23: 0 | V23: 0 | AA23: 0 | AF23: 0 | AK23: 0 | AM23: H | AO23: 7.5 | AP23: 0 | AQ23: 0 | AR23: 0 | AS23: 0 | AT23: 0
G24: 0 | L24: 0 | Q24: 0 | V24: 0 | AA24: 0 | AF24: 0 | AK24: 0 | AM24: H | AO24: 7.5 | AP24: 0 | AQ24: 0 | AR24: 0 | AS24: 0 | AT24: 0
G25: 0 | L25: 0 | Q25: 0 | V25: 0 | AA25: 0 | AF25: 0 | AK25: 0 | AM25: H | AO25: 7.5 | AP25: 0 | AQ25: 0 | AR25: 0 | AS25: 0 | AT25: 0
G26: 0 | L26: 0 | Q26: 0 | V26: 0 | AA26: 0 | AF26: 0 | AK26: =IF(AU26>AH26,(24-((AU26-AH26)*24)),(AH26-AU26)*24)+IF(AI26>AJ26,(24-((AI26-AJ26)*24)),(AJ26-AI26)*24) -> 0 | AM26: H | AO26: 7.5 | AP26: 0 | AQ26: 0 | AR26: 0 | AS26: 0 | AT26: 0 | AU26: FALSE
AO28: TOTALS | AQ28: =SUM(AQ7:AQ26) -> 1573.25 | AR28: =SUM(AR7:AR26) -> 119.3355 | AS28: 32.5425 | AT28: =IF(AU26=TRUE,AU28+(AU28*AN36),AU28) -> 1725.128 | AU28: =SUM(AT7:AT26) -> 1725.128
AN31: 175 | AO31: Secondary threshold (weekly)
AN32: 0.138 | AO32: Secondary Class 1 NIC
AN33: 0.03 | AO33: Employer contribution
AN34: 192 | AO34: Enrollment threshold
AN35: 120 | AO35: Pension threshold
AN36: 0.1207 | AO36: Holiday accrual % | AR36: www.roslyns.co.uk

Sheet NMW 2023&24
D3: From April 2024
C4: Age | D4: 21 + | E4: 18 - 20 | F4: under 18 | G4: Apprentice
C5: Wage | D5: 11.44 | E5: 8.6 | F5: 6.4 | G5: 6.4
D8: From April 2023
C9: Age | D9: 23+ | E9: 21 to 22 | F9: 18 - 20 | G9: Under 18 | H9: Apprentice
C10: Wage | D10: 10.42 | E10: 10.18 | F10: 7.49 | G10: 5.28 | H10: 5.28
